bitfinex/quotes_ETHUSD_20240817
["timestamp","ask_amount","ask_price","bid_price","bid_amount"]
[1723921505540,19.95,2616.9,2616.5,2.8664]
[1723921505736,22.816,2616.9,2616.4,5.73292]
[1723921505960,26.62545125,2616.9,2616.4,5.73292]
[1723921506244,1.59021405,2617.0,2616.6,2.86626]
[1723921506449,19.95,2617.0,2616.6,2.86626]
[1723921507277,19.95,2617.0,2616.5,2.86642]
[1723921507481,2.86617,2616.8,2616.3,2.86653]
[1723921507646,2.86621,2616.7,2616.2,2.86674]
[1723921508482,2.86621,2616.7,2616.1,5.27443]
[1723921508483,2.86643,2616.5,2616.1,2.4076]
[1723921508683,2.8666,2616.4,2615.8,5.27472]
[1723921508982,22.8166,2616.4,2615.9,2.86707]
[1723921509188,22.8166,2616.4,2615.8,5.27478]
[1723921509383,25.77818041,2616.4,2615.8,2.86718]
[1723921509581,2.8667,2616.3,2615.8,2.86718]
[1723921509755,25.77818041,2616.4,2615.9,2.86705]
[1723921510168,25.77818041,2616.4,2615.8,2.86718]
[1723921510374,2.86669,2616.3,2615.8,2.86718]
[1723921510819,2.86669,2616.3,2615.8,5.73431]
[1723921511361,2.86669,2616.3,2615.8,2.86713]
[1723921513465,2.3426,2616.1,2615.7,2.86728]
[1723921513717,25.1595,2616.1,2615.6,2.86737]
[1723921513860,2.86698,2616.0,2615.5,2.86742]
[1723921515000,19.95,2616.0,2615.2,2.4076]
[1723921515202,5.21009,2615.6,2614.9,5.27574]
[1723921515428,2.86758,2615.5,2615.0,2.86799]
[1723921515581,2.86758,2615.5,2615.1,2.86793]
[1723921515782,2.3426,2615.6,2615.1,2.86793]
[1723921515984,2.3426,2615.6,2615.2,2.86784]
[1723921516517,2.86727,2615.8,2615.3,5.27528]
[1723921516670,2.86725,2615.8,2615.3,5.27528]
[1723921516865,4.82604059,2615.8,2615.3,2.86768]
[1723921519574,4.82604059,2615.8,2615.2,2.86784]
[1723921519877,24.77604059,2615.8,2615.2,2.86784]
[1723921520474,2.3426,2615.6,2615.2,2.86784]
[1723921520891,22.81725,2615.8,2615.4,2.86762]
[1723921521410,28.65525941,2615.8,2615.3,2.86773]
[1723921521581,25.78800941,2615.8,2615.3,2.86773]
[1723921522177,28.65525941,2615.8,2615.3,2.86773]
[1723921522565,25.78800941,2615.8,2615.3,2.86773]
[1723921522772,22.81725,2615.8,2615.3,2.86773]
[1723921523580,22.81725,2615.8,2615.4,2.86762]
[1723921524669,19.95,2615.8,2615.4,2.86762]
[1723921525635,22.81721,2615.8,2615.4,2.86762]
[1723921525934,22.81721,2615.8,2615.3,2.86773]
[1723921526143,19.95,2615.8,2615.4,5.29106543]
[1723921526311,19.95,2615.8,2615.6,2.86735]
[1723921528116,19.95,2615.8,2615.4,5.73513]
[1723921528614,19.95,2615.8,2615.4,2.86753]
[1723921530134,22.81719,2615.8,2615.4,2.86753]
[1723921530442,2.4331,2615.7,2615.4,2.86753]
[1723921530599,2.4331,2615.7,2615.0,2.86797]
[1723921530799,2.86741,2615.6,2615.0,2.86797]
[1723921531305,5.30042,2615.7,2615.2,2.86778]
[1723921532045,5.3004,2615.7,2615.2,5.73557]
[1723921532200,2.86709,2615.9,2615.4,2.86757]
[1723921532645,2.86709,2615.9,2615.5,2.86751]
[1723921533722,2.86709,2615.9,2615.3,2.86766]
[1723921534612,2.86709,2615.9,2615.4,2.86761]
[1723921535532,2.86709,2615.9,2615.4,5.73522]
[1723921535704,2.86709,2615.9,2615.4,2.86761]
[1723921536112,2.3937,2615.8,2615.4,2.86761]
[1723921536946,2.86795,2615.2,2614.7,2.8990532]
[1723921537150,2.86824,2614.9,2614.7,0.0307132]
[1723921538451,2.86828,2614.8,2614.7,0.0307132]
[1723921539458,7.05356,2614.8,2614.7,0.0307132]
[1723921539642,12.31554,2614.8,2614.7,0.0307132]
[1723921539844,13.547094,2614.8,2614.7,0.0307132]
[1723921540022,12.230094,2614.8,2614.7,0.0307132]
[1723921541262,9.361814,2614.8,2614.7,0.0307132]
[1723921544065,12.230094,2614.8,2614.7,0.0307132]
[1723921544303,9.361814,2614.8,2614.7,0.0307132]
[1723921544445,12.230094,2614.8,2614.7,0.0307132]
[1723921544756,9.361814,2614.8,2614.7,0.0307132]
[1723921546554,2.8688,2614.4,2613.8,2.6500132]
[1723921546863,5.73759,2614.4,2613.8,2.6500132]
[1723921547063,5.73759,2614.4,2613.7,2.86947]
[1723921547064,2.86895,2614.2,2613.7,2.86947]
[1723921549794,2.4509,2614.5,2613.7,2.86947]
[1723921549944,2.86878,2614.4,2613.9,2.86926]
[1723921554487,5.73757,2614.4,2613.9,2.86926]
[1723921554786,2.86884,2614.3,2613.9,2.86926]
[1723921554988,2.86878,2614.4,2613.9,2.86926]
[1723921556621,2.86878,2614.4,2613.9,5.73847]
[1723921556850,2.86878,2614.4,2613.9,2.86921]
[1723921557916,2.86858,2614.6,2614.0,2.3508]
[1723921558109,2.86858,2614.6,2614.1,2.86905]
[1723921558314,5.73717,2614.6,2614.1,2.86905]
[1723921558971,2.86861,2614.5,2614.1,2.86905]
[1723921559170,2.86861,2614.5,2614.0,5.21996]
[1723921562249,2.86858,2614.6,2614.0,5.21996]
[1723921562454,5.73716,2614.6,2614.0,5.21996]
[1723921562611,2.86863,2614.5,2614.0,5.21996]
[1723921566546,4.00335184,2614.5,2614.0,5.21996]
[1723921568345,2.86863,2614.5,2614.0,5.21996]
[1723921568545,2.8682,2614.9,2614.4,5.2821]
[1723921568791,2.8682,2614.9,2614.2,2.86893]
[1723921568792,2.8684,2614.7,2614.2,2.86893]
[1723921569100,2.86829,2614.8,2614.2,5.73779]
[1723921569392,2.86829,2614.8,2614.3,2.86883]
[1723921569594,2.86814,2615.0,2614.5,5.28195]
[1723921570709,7.18493,2615.2,2614.5,5.28195]
[1723921570710,7.1849,2615.2,2614.6,2.94489967]
[1723921570852,8.48012276,2615.2,2614.6,2.86841]
[1723921571052,2.86797,2615.1,2614.6,2.86841]
[1723921572568,5.73602,2615.1,2614.6,2.86841]
[1723921572908,2.86797,2615.1,2614.6,2.86841]
[1723921573075,3.94593928,2615.1,2614.5,2.8686]
[1723921573280,2.86808,2615.0,2614.5,2.8686]
[1723921573475,1.07796928,2615.1,2614.6,2.86849]
[1723921573676,2.86801,2615.1,2614.6,2.86849]
[1723921574108,5.73605,2615.1,2614.6,2.86849]
[1723921574415,2.86806,2615.0,2614.6,2.86849]
[1723921577526,2.86801,2615.1,2614.7,2.4134]
[1723921577716,3.0,2615.2,2614.7,5.28178]
[1723921577912,7.10540316,2615.2,2614.7,2.4134]
[1723921578115,2.86798,2615.1,2614.7,2.4134]
[1723921578730,5.73602,2615.1,2614.7,2.4134]
[1723921579037,3.86532832,2615.1,2614.7,2.4134]
[1723921582462,1.59021405,2615.2,2614.7,2.4134]
[1723921582650,2.86781,2615.3,2614.8,5.73651]
[1723921583951,1.59021405,2615.4,2614.9,0.07647844]
[1723921584267,4.92556408,2615.5,2615.1,2.86794]
[1723921584268,4.45774405,2615.5,2615.1,2.86794]
[1723921584769,1.317,2615.6,2615.1,2.86794]
[1723921584770,5.77465405,2615.6,2615.1,2.86794]
[1723921585827,1.59021405,2615.7,2615.1,0.0764734]
[1723921586034,4.45741405,2615.8,2615.3,2.86766]
[1723921586341,2.8672,2615.8,2615.3,2.86766]
[1723921587172,2.8672,2615.8,2615.2,2.86784]
[1723921587173,2.86741,2615.6,2615.2,2.86784]
[1723921587977,7.96085641,2615.7,2615.2,2.86784]
[1723921588129,2.8673,2615.7,2615.2,2.86784]
[1723921588327,2.8673,2615.7,2615.2,2.86779]
[1723921588853,2.8673,2615.7,2615.0,8.09515]
[1723921589172,5.2334,2615.7,2615.1,2.8679]
[1723921589373,5.2334,2615.7,2615.2,2.86783]
[1723921593291,4.18419,2615.8,2615.3,2.86772]
[1723921593424,4.18419,2615.8,2615.4,2.3592]
[1723921593626,4.18419,2615.8,2615.2,5.22703]
[1723921593627,2.8673,2615.7,2615.2,5.22703]
[1723921594190,2.3661,2615.6,2615.0,5.22719]
[1723921594328,2.3661,2615.6,2614.8,2.86824]
[1723921594329,2.86774,2615.3,2614.8,2.86824]
[1723921594731,2.8676,2615.5,2614.9,2.86816]
[1723921594981,3.97281256,2615.5,2614.9,2.86816]
[1723921595494,2.3661,2615.6,2615.1,2.86789]
[1723921595630,6.39585154,2615.7,2615.1,5.22709]
[1723921595828,3.66601656,2615.6,2615.1,5.22709]
[1723921598166,0.79860656,2615.6,2615.1,5.22709]
[1723921598531,3.66603656,2615.6,2615.1,5.22709]
[1723921599032,3.66603656,2615.6,2615.1,2.3592]
[1723921599033,0.79860656,2615.6,2615.1,2.3592]
[1723921599459,0.79860656,2615.6,2615.2,2.86778]
[1723921600084,6.39585154,2615.7,2615.4,2.86762]
[1723921600085,0.52849154,2615.7,2615.4,2.86762]
[1723921600235,3.0,2615.8,2615.4,2.86762]
[1723921600565,1.005133,2615.7,2615.4,2.86762]
[1723921600766,1.005133,2615.7,2615.2,2.86774]
[1723921600993,1.005133,2615.7,2615.3,2.86771]
[1723921604421,5.8672,2615.8,2615.3,2.86771]
[1723921604699,4.18414,2615.9,2615.4,2.86756]
[1723921605909,7.0513,2615.9,2615.4,2.86756]
[1723921606116,3.80895,2615.8,2615.3,2.86773]
[1723921607981,2.86721,2615.8,2615.3,2.86773]
[1723921608997,22.81721,2615.8,2615.3,2.86773]
[1723921609912,6.60781,2615.7,2615.1,5.2271]
[1723921610070,5.523261,2615.6,2615.1,2.8679]
[1723921611994,5.523261,2615.6,2615.2,2.86784]
[1723921612186,22.81724,2615.8,2615.2,5.23214]
[1723921612378,22.81724,2615.8,2615.3,2.86771]
[1723921612578,25.91875141,2615.8,2615.3,2.86771]
[1723921614804,19.95,2615.7,2615.3,2.86771]
[1723921620451,19.95,2615.7,2615.6,2.86741]
[1723921620671,1.59021405,2616.1,2615.9,2.86705]
[1723921620949,19.95,2616.2,2616.0,2.86694]
[1723921621096,19.95,2616.2,2615.9,2.86707]
[1723921621299,4.45715405,2616.1,2615.6,5.3664]
[1723921621526,4.45715405,2616.1,2615.7,2.86729]
[1723921621527,1.59021405,2616.1,2615.7,2.86729]
[1723921621728,19.95,2616.2,2615.9,2.86703]
[1723921621899,19.95,2616.2,2615.9,2.86697]
[1723921623599,19.95,2616.2,2615.7,5.73441]
[1723921623801,5.82342513,2616.2,2615.8,2.86716]
[1723921624001,2.444,2616.2,2615.8,2.86716]
[1723921624939,4.03421405,2616.2,2615.8,2.86716]
[1723921625104,1.59021405,2616.1,2615.7,2.86719]
[1723921626062,4.45707405,2616.1,2615.7,2.86719]
[1723921627603,6.90096405,2616.2,2615.7,5.73442]
[1723921627805,2.444,2616.2,2615.8,2.86718]
[1723921628037,4.03421405,2616.2,2615.8,2.86718]
[1723921628237,24.40685405,2616.3,2615.8,2.86718]
[1723921629306,25.97811538,2616.3,2615.8,2.86718]
[1723921629618,2.86677,2616.2,2615.7,5.36619]
[1723921629819,19.95,2616.1,2615.7,8.23344]
[1723921630231,19.95,2616.1,2615.8,2.86713]
[1723921631618,24.99181154,2616.1,2615.7,2.86719]
[1723921633547,26.58202559,2616.1,2615.7,2.86719]
[1723921634242,24.99181154,2616.1,2615.7,2.86719]
[1723921634441,26.58202559,2616.1,2615.7,2.86719]
[1723921634654,24.99181154,2616.1,2615.7,2.86719]
[1723921634831,22.394,2616.1,2615.8,2.86718]
[1723921635629,19.95,2616.0,2615.8,2.86718]
[1723921637810,19.95,2616.0,2615.9,2.86708]
[1723921638458,19.95,2616.0,2615.8,2.86718]
[1723921638834,19.95,2616.0,2615.7,2.86729]
[1723921640157,2.444,2615.9,2615.6,2.86732]
[1723921641758,22.394,2615.9,2615.6,2.86732]
[1723921643720,19.95,2615.9,2615.6,2.86732]
[1723921645057,19.95,2615.9,2615.7,2.86729]
[1723921647561,19.95,2616.0,2615.8,2.86719]
[1723921647765,19.95,2616.0,2615.9,2.86708]
[1723921648360,19.95,2616.0,2615.9,5.73416]
[1723921652251,19.95,2616.0,2615.9,2.86708]
[1723921653561,19.95,2616.2,2615.9,2.86708]
[1723921656161,19.95,2616.2,2616.0,2.86692]
[1723921656761,19.95,2616.2,2616.1,5.73372]
[1723921657576,19.95,2616.2,2616.1,2.86686]
[1723921659877,21.54021405,2616.4,2616.1,2.86686]
[1723921660638,19.95,2616.4,2616.1,2.86686]
[1723921660981,21.54021405,2616.4,2616.1,2.86686]
[1723921661485,19.95,2616.4,2616.1,2.86686]
[1723921661673,21.54021405,2616.4,2616.1,2.86686]
[1723921662652,19.95,2616.4,2616.1,2.86686]
[1723921663052,19.95,2616.4,2616.2,2.86674]
[1723921665269,21.54021405,2616.4,2616.2,5.2159]
[1723921665479,21.54021405,2616.4,2616.2,5.21589]
[1723921665989,1.59021405,2616.4,2616.3,2.86664]
[1723921666178,1.59021405,2616.4,2616.3,5.73328]
[1723921666890,1.59021405,2616.4,2616.3,6.673228]
[1723921667784,1.59021405,2616.4,2616.3,9.022428]
[1723921668187,1.59021405,2616.4,2616.3,3.806588]
[1723921668349,1.59021405,2616.4,2616.3,2.86664]
[1723921670312,19.95,2616.6,2616.3,2.86664]
[1723921670607,19.95,2616.6,2616.4,2.86651]
[1723921671897,19.95,2616.7,2616.4,2.86651]
[1723921672100,19.95,2616.6,2616.4,2.86651]
[1723921673004,19.95,2616.6,2616.3,2.86663]
[1723921675291,19.95,2616.6,2616.4,2.8665]
[1723921677175,22.6385984,2616.6,2616.3,2.86663]
[1723921677426,2.4796,2616.5,2616.2,2.86674]
[1723921677578,2.26385984,2616.5,2616.2,2.86674]
[1723921677781,19.95,2616.5,2616.2,2.86674]
[1723921678221,19.95,2616.5,2616.1,2.86677]
[1723921678538,19.95,2616.5,2616.1,5.73357]
[1723921680390,19.95,2616.5,2616.2,2.86669]
[1723921681699,19.95,2616.5,2616.3,2.86657]
[1723921682305,19.95,2616.5,2616.4,2.86653]
[1723921683609,19.95,2616.5,2616.4,6.54796]
[1723921683795,1.99928594,2616.9,2616.6,2.86631]
[1723921683796,19.95,2616.7,2616.6,2.86631]
[1723921685810,19.95,2616.7,2616.4,2.86653]
[1723921685811,2.4277,2616.6,2616.4,2.86653]
[1723921686006,2.4277,2616.6,2616.5,2.86642]
[1723921688715,19.95,2616.7,2616.5,2.86642]
[1723921690218,19.95,2616.7,2616.6,2.86631]
[1723921691107,19.95,2616.7,2616.6,5.28221]
[1723921691715,19.95,2616.7,2616.6,2.86631]
[1723921693039,19.95,2616.7,2616.4,5.28243]
[1723921693040,19.95,2616.7,2616.5,2.86642]
[1723921695563,21.54021405,2616.8,2616.5,2.86642]
[1723921696119,19.95,2616.8,2616.5,2.86642]
[1723921696524,19.95,2616.8,2616.5,5.73277]
[1723921696525,21.54021405,2616.8,2616.5,5.73277]
[1723921696728,19.95,2616.8,2616.6,2.8663]
[1723921697172,21.54021405,2616.8,2616.6,2.8663]
[1723921697375,19.95,2616.8,2616.6,2.8663]
[1723921697664,21.54021405,2616.8,2616.6,2.8663]
[1723921698578,19.95,2616.8,2616.6,2.8663]
[1723921698773,19.95,2616.8,2616.5,5.73271]
[1723921698977,19.95,2616.8,2616.6,2.86631]
[1723921700840,21.54021405,2616.8,2616.6,2.86631]
[1723921701240,19.95,2616.8,2616.6,2.86631]
[1723921701759,19.95,2616.7,2616.6,2.86631]
[1723921704836,19.95,2616.7,2616.5,2.86642]
[1723921705042,2.4474,2616.6,2616.5,2.86642]
[1723921706097,22.3974,2616.7,2616.3,2.86663]
[1723921706313,1.59021405,2616.6,2616.3,2.86658]
[1723921706811,1.59021405,2616.5,2616.2,2.86674]
[1723921707345,1.59021405,2616.5,2616.0,2.86686]
[1723921707487,1.59021405,2616.5,2615.8,2.86711]
[1723921707488,23.98761405,2616.4,2615.8,2.86711]
[1723921707650,23.98761405,2616.4,2615.9,2.86706]
[1723921707651,21.54021405,2616.3,2615.9,2.86706]
[1723921708958,21.54021405,2616.3,2615.9,2.86702]
[1723921709154,21.54021405,2616.3,2615.9,5.73401]
[1723921709460,19.95,2616.3,2615.9,5.73401]
[1723921709922,19.95,2616.3,2616.0,2.86697]
[1723921717387,2.4596,2616.2,2616.0,2.86697]
[1723921717592,2.4596,2616.2,2615.9,2.86707]
[1723921718414,2.4596,2616.2,2615.9,5.73414]
[1723921718623,2.4596,2616.2,2615.9,2.86702]
[1723921719399,22.4096,2616.2,2615.9,2.86702]
[1723921719602,22.4096,2616.2,2615.9,5.73404]
[1723921720505,19.95,2616.3,2615.5,2.3586]
[1723921720724,5.32637,2616.2,2615.7,2.86721]
[1723921721935,2.86726,2615.8,2615.3,2.86765]
[1723921722135,19.95,2615.7,2615.3,2.86765]
[1723921722351,2.4125,2615.6,2615.3,2.86765]
[1723921722844,2.4125,2615.6,2615.1,5.73578]
[1723921723646,2.4125,2615.6,2615.1,2.86788]
[1723921723852,5.27991,2615.6,2615.1,2.86788]
[1723921724148,2.4125,2615.6,2615.2,2.86784]
[1723921725330,22.81731,2615.7,2615.5,2.86744]
[1723921725331,19.95,2615.7,2615.5,2.86744]
[1723921728264,22.3625,2615.8,2615.5,2.86744]
[1723921729130,22.3625,2615.8,2615.3,5.73531]
[1723921729426,22.3625,2615.8,2615.3,2.86763]
[1723921729662,22.3625,2615.8,2615.4,2.86762]
[1723921730179,2.8673,2615.7,2615.2,1.317]
[1723921730386,2.8673,2615.7,2615.2,4.18483]
[1723921731928,25.172155,2615.8,2615.4,1.317]
[1723921732128,25.172155,2615.8,2615.4,4.603093]
[1723921732129,22.3625,2615.8,2615.4,4.603093]
[1723921732366,22.3625,2615.8,2615.4,4.18462]
[1723921732603,25.22969,2615.8,2615.4,1.317]
[1723921733015,28.039363,2615.8,2615.3,2.86773]
[1723921733211,25.22969,2615.8,2615.3,5.73541]
[1723921734280,19.95,2615.7,2615.3,5.73541]
[1723921734474,5.27969,2615.8,2615.3,5.73535]
[1723921734674,5.27969,2615.8,2615.3,2.86767]
[1723921734907,5.27969,2615.8,2615.3,5.73535]
[1723921735907,5.27969,2615.8,2615.4,2.86761]
[1723921737116,2.4125,2616.0,2615.6,2.86734]
[1723921741190,5.27947,2616.0,2615.6,2.86734]
[1723921741633,2.3427,2615.9,2615.5,2.86751]
[1723921741810,5.869427,2615.9,2615.5,2.86751]
[1723921742025,3.002347,2615.9,2615.5,2.86751]
[1723921743429,2.3427,2615.9,2615.5,2.86751]
[1723921744244,5.20967,2616.0,2615.5,2.86751]
[1723921745438,5.20967,2616.0,2615.5,2.86746]
[1723921750723,8.07672,2616.0,2615.5,2.86746]
[1723921750935,0.96769383,2615.9,2615.5,2.86746]
[1723921753063,9.67693832,2616.0,2615.5,2.86746]
[1723921753222,5.20967,2616.0,2615.5,2.86746]
[1723921753935,8.0767,2616.0,2615.5,2.86746]
[1723921754148,9.67691832,2616.0,2615.5,2.86746]
[1723921754355,8.0767,2616.0,2615.5,2.86746]
[1723921755028,9.67691832,2616.0,2615.5,2.86746]
[1723921755228,0.96769183,2615.9,2615.5,2.86746]
[1723921756156,3.83478183,2615.9,2615.5,2.86746]
[1723921757473,5.43500015,2615.9,2615.5,2.86746]
[1723921757620,3.83478183,2615.9,2615.5,2.86746]
[1723921758028,5.43500015,2615.9,2615.5,2.86746]
[1723921758229,3.83478183,2615.9,2615.5,2.86746]
[1723921758428,2.86709,2615.9,2615.5,2.86746]
[1723921758627,4.46730832,2615.9,2615.4,5.11882]
[1723921758844,2.86727,2615.8,2615.4,2.2512]
[1723921759044,1.16755477,2615.8,2615.3,2.86766]
[1723921759536,2.8673,2615.7,2615.2,2.86784]
[1723921761644,4.46741832,2615.8,2615.3,2.86772]
[1723921761845,2.8672,2615.8,2615.3,2.86768]
[1723921762081,4.46741832,2615.8,2615.3,2.86768]
[1723921762437,1.60021832,2615.8,2615.3,2.86768]
[1723921762774,7.33450832,2615.9,2615.4,2.86761]
[1723921763285,1.60021832,2615.8,2615.4,2.86761]
[1723921763455,4.46740832,2615.8,2615.4,2.86761]
[1723921765448,1.60021832,2615.7,2615.4,2.86761]
[1723921766264,4.46740832,2615.8,2615.3,2.86773]
[1723921767803,4.46751832,2615.7,2615.2,2.86784]
[1723921768002,2.86777,2615.3,2614.9,2.86809]
[1723921768221,6.96668832,2615.3,2614.8,5.31068]
[1723921768501,1.60021832,2615.2,2614.8,5.31068]
[1723921768666,4.09891832,2615.3,2614.8,2.4424]
[1723921768873,4.46822832,2615.1,2614.6,5.31083]
[1723921769056,1.60021832,2615.1,2614.6,5.31083]
[1723921769260,1.60021832,2615.0,2614.6,5.31083]
[1723921769481,2.002388,2615.1,2614.7,2.86838]
[1723921769482,1.60021832,2615.1,2614.7,2.86838]
[1723921770498,5.78366295,2615.1,2614.6,2.4424]
[1723921772389,2.86808,2615.0,2614.6,2.4424]
[1723921772583,5.73625,2615.0,2614.5,2.86851]
[1723921773005,2.86808,2615.0,2614.5,2.86851]
[1723921773924,2.86808,2615.0,2614.5,5.73707]
[1723921774129,2.86808,2615.0,2614.6,2.8685]
[1723921775354,5.36678,2615.0,2614.6,2.8685]
[1723921775503,2.86808,2615.0,2614.6,2.8685]
[1723921777710,2.4987,2614.9,2614.4,6.62806]
[1723921777869,2.4987,2614.9,2614.4,9.49673]
[1723921778024,2.4987,2614.9,2614.4,10.446403]
[1723921778414,2.4987,2614.9,2614.5,2.86861]
[1723921779048,2.86808,2615.0,2614.6,2.86849]
[1723921779230,5.36666,2615.1,2614.6,3.25147216]
[1723921779719,5.36666,2615.1,2614.6,2.86849]
[1723921782158,5.36666,2615.1,2614.6,5.73689]
[1723921782483,2.86796,2615.1,2614.7,2.4123]
[1723921782720,2.86791,2615.2,2614.7,2.4123]
[1723921782721,2.86791,2615.2,2614.7,5.28068]
[1723921782894,2.86791,2615.2,2614.4,1.317]
[1723921782895,2.2898,2614.9,2614.4,2.86863]
[1723921783056,2.2898,2614.7,2614.2,2.86888]
[1723921783378,2.2898,2614.7,2614.4,2.86872]
[1723921793818,2.2898,2614.7,2614.2,5.73771]
[1723921794504,2.2898,2614.7,2614.3,2.86879]
[1723921799710,22.2398,2614.7,2614.3,2.86879]
[1723921803492,22.2398,2614.7,2614.4,2.86872]
[1723921804488,22.2398,2614.7,2614.3,2.86882]
[1723921806779,25.1082,2614.7,2614.3,2.86882]
[1723921809243,22.2398,2614.7,2614.3,2.86882]
[1723921811482,25.10821,2614.7,2614.3,2.86882]
[1723921811682,25.10821,2614.7,2614.1,2.4123]
[1723921811683,2.86864,2614.5,2614.1,2.4123]
[1723921811888,2.86878,2614.4,2613.9,2.86925]
[1723921812129,2.4378,2614.3,2613.9,2.86925]
[1723921817348,5.30642,2614.5,2614.0,2.86914]
[1723921817509,5.30642,2614.5,2614.1,0.286914]
[1723921817688,5.30642,2614.5,2614.0,2.86911]
[1723921818998,6.90663832,2614.5,2614.0,2.86911]
[1723921819205,5.30642,2614.5,2614.0,5.13251]
[1723921819562,2.4378,2614.5,2614.0,8.0016]
[1723921820166,2.4378,2614.5,2614.2,2.86887]
[1723921820439,4.87039059,2614.7,2614.4,2.86867]
[1723921820440,1.60021832,2614.7,2614.4,2.86867]
[1723921820644,22.3878,2614.8,2614.4,2.86865]
[1723921820942,23.98801832,2614.8,2614.4,2.86865]
[1723921821706,26.85630832,2614.8,2614.2,5.73769]
[1723921821901,1.60021832,2614.7,2614.2,5.73769]
[1723921822171,1.60021832,2614.7,2614.3,2.86879]
[1723921823450,21.55021832,2614.7,2614.3,2.86879]
[1723921823811,21.55021832,2614.7,2614.5,2.86859]
[1723921824009,19.95,2614.7,2614.5,2.86859]
[1723921824459,19.95,2614.7,2614.4,2.86872]
[1723921824638,19.95,2614.7,2614.3,2.86877]
[1723921824838,21.55021832,2614.7,2614.3,5.73751]
[1723921825163,21.55021832,2614.7,2614.4,2.86871]
[1723921826557,1.60021832,2614.6,2614.4,2.86871]
[1723921826756,21.55021832,2614.7,2614.4,2.86871]
[1723921827124,2.4749,2614.6,2614.1,2.86897]
[1723921827422,6.94362832,2614.6,2614.1,2.86897]
[1723921828558,1.60021832,2614.5,2614.1,2.86897]
[1723921832363,2.4749,2614.4,2614.1,2.86897]
[1723921832581,2.4749,2614.4,2614.0,2.86915]
[1723921832786,6.94384832,2614.4,2613.9,5.73837]
[1723921833002,6.94384832,2614.4,2613.9,5.73839]
[1723921833985,8.42149738,2614.4,2613.9,5.73839]
[1723921834376,6.82127906,2614.4,2614.0,2.86914]
[1723921834950,8.42149738,2614.4,2614.0,2.86914]
[1723921841711,8.42149738,2614.4,2613.8,2.86937]
[1723921841712,2.2928,2614.3,2613.6,5.32322]
[1723921841922,2.2928,2614.3,2613.5,2.11982531]
[1723921841923,2.2928,2614.1,2613.5,2.11982531]
[1723921842198,2.86918,2614.0,2613.5,4.98952531]
[1723921842743,5.73841,2614.0,2613.5,3.67252531]
[1723921842910,2.86918,2614.0,2613.5,6.5768]
[1723921843699,1.60021832,2614.1,2613.6,0.65768]
[1723921844027,1.60021832,2614.1,2614.0,2.86916]
[1723921844745,1.60021832,2614.1,2614.0,8.12842]
[1723921846952,1.60021832,2614.1,2614.0,10.99758]
[1723921847164,1.60021832,2614.1,2614.0,11.67255516]
[1723921847460,2.00284097,2614.2,2614.1,5.7381]
[1723921848129,2.00284097,2614.2,2614.1,7.0551]
[1723921848818,2.00284097,2614.9,2614.7,2.86837]
[1723921849014,2.00284097,2614.9,2614.8,5.73656]
[1723921850255,2.2928,2615.3,2614.8,5.73656]
[1723921850256,2.2928,2615.3,2614.9,2.86814]
[1723921850665,2.2928,2615.3,2615.0,2.86806]
[1723921850960,5.30235,2615.6,2615.1,2.86795]
[1723921851162,5.589095,2615.6,2615.1,2.86795]
[1723921851526,8.456575,2615.6,2615.1,2.86795]
[1723921851767,8.456575,2615.6,2615.0,2.86806]
[1723921851965,0.8456575,2615.5,2615.0,2.86806]
[1723921852821,0.8456575,2615.5,2615.0,2.868]
[1723921853057,2.4349,2615.8,2615.1,1.317]
[1723921853262,3.96462713,2615.9,2615.4,2.86754]
[1723921853482,0.68316671,2615.8,2615.4,2.86754]
[1723921854087,2.86705,2616.0,2615.4,2.86754]
[1723921854299,5.7341,2616.0,2615.4,2.86754]
[1723921854708,2.86709,2615.9,2615.4,2.86754]
[1723921854886,4.18405,2616.0,2615.4,2.86754]
[1723921855203,7.0511,2616.0,2615.4,2.86754]
[1723921855502,0.9486,2615.9,2615.4,2.86754]
[1723921856619,0.9486,2615.9,2615.4,5.73511]
[1723921857112,0.9486,2615.9,2615.4,2.86754]
[1723921858692,3.81568,2615.9,2615.4,2.86754]
[1723921859218,19.95,2615.8,2615.4,2.86754]
[1723921859403,22.744971,2615.8,2615.4,2.86754]
[1723921862343,26.929171,2615.8,2615.2,2.86775]
[1723921862710,26.929171,2615.8,2615.3,2.86768]
[1723921862946,2.7877771,2615.7,2615.3,2.86768]
[1723921863161,2.7877771,2615.7,2615.2,2.86775]
[1723921863451,5.0557771,2615.7,2615.2,2.86775]
[1723921863755,5.0557771,2615.7,2615.2,5.73554]
[1723921863954,5.0557771,2615.7,2615.2,2.86775]
[1723921864255,5.78641771,2615.6,2615.1,2.86794]
[1723921864749,7.10341771,2615.6,2615.0,2.86799]
[1723921864954,3.67296177,2615.5,2615.0,2.86799]
[1723921865264,19.95,2615.4,2615.0,2.86799]
[1723921865446,19.95,2615.4,2614.9,2.86816]
[1723921865617,19.95,2615.4,2615.0,2.868]
[1723921865810,22.73589595,2615.4,2615.0,2.868]
[1723921867456,22.73589595,2615.4,2615.1,2.86794]
[1723921867640,19.95,2615.4,2615.2,2.86784]
[1723921871295,19.95,2615.5,2615.2,2.86784]
[1723921874369,19.95,2615.5,2615.1,2.86795]
[1723921876396,19.95,2615.5,2615.2,2.86783]
[1723921877101,19.95,2615.5,2615.1,2.86795]
[1723921877264,2.281741,2615.4,2615.1,2.86795]
[1723921877463,19.95,2615.5,2615.1,2.86795]
[1723921878410,19.95,2615.5,2615.2,2.86782]
[1723921880071,19.95,2615.5,2615.3,2.3444]